[Event "*** Titled Tuesday Blitz"]
[Site "Chess.com"]
[Date "2020.11.03"]
[Round "2"]
[White "Karateloru"]
[Black "petrkostenko"]
[Result "1-0"]
[WhiteElo "2705"]
[BlackElo "2467"]
[TimeControl "180+1"]
[EndTime "10:17:28 PST"]
[Termination "Karateloru won by resignation"]

1. e4 {[%clk 0:03:00.9]} 1... e6 {[%clk 0:03:00.1]} 2. e5 {[%clk 0:03:00]} 2...
c5 {[%clk 0:02:59.3]} 3. Nc3 {[%clk 0:02:58.6]} 3... Nc6 {[%clk 0:02:59.2]} 4.
f4 {[%clk 0:02:58.5]} 4... d6 {[%clk 0:02:55.7]} 5. exd6 {[%clk 0:02:57.9]} 5...
Bxd6 {[%clk 0:02:55]} 6. Bb5 {[%clk 0:02:54.4]} 6... Ne7 {[%clk 0:02:42.5]} 7.
Nge2 {[%clk 0:02:48.5]} 7... O-O {[%clk 0:02:41.1]} 8. Bxc6 {[%clk 0:02:47.1]}
8... Nxc6 {[%clk 0:02:40.3]} 9. O-O {[%clk 0:02:45.7]} 9... b6 {[%clk
0:02:34.2]} 10. d3 {[%clk 0:02:44.8]} 10... Bb7 {[%clk 0:02:33.7]} 11. Ne4
{[%clk 0:02:44.6]} 11... Be7 {[%clk 0:02:32.8]} 12. b3 {[%clk 0:02:41.2]} 12...
Nb4 {[%clk 0:02:16.2]} 13. Bd2 {[%clk 0:02:27.5]} 13... Nd5 {[%clk 0:02:12.9]}
14. N2g3 {[%clk 0:02:26.9]} 14... g6 {[%clk 0:01:51.3]} 15. Qe2 {[%clk
0:02:03.2]} 15... Rc8 {[%clk 0:01:50.7]} 16. Rad1 {[%clk 0:02:02.5]} 16... Rc7
{[%clk 0:01:50.6]} 17. c4 {[%clk 0:02:02]} 17... Nf6 {[%clk 0:01:48.8]} 18. Bc3
{[%clk 0:01:54.9]} 18... Rd7 {[%clk 0:01:48.4]} 19. Ng5 {[%clk 0:01:47.6]} 19...
Ne8 {[%clk 0:01:29.8]} 20. Nf3 {[%clk 0:01:25.5]} 20... Qc7 {[%clk 0:01:13.3]}
21. Ne5 {[%clk 0:01:25.3]} 21... Rd8 {[%clk 0:01:13.4]} 22. f5 {[%clk
0:01:21.5]} 22... exf5 {[%clk 0:01:10.9]} 23. Nxf5 {[%clk 0:01:22.3]} 23... Bf6
{[%clk 0:01:06]} 24. Nh6+ {[%clk 0:01:19.2]} 24... Kg7 {[%clk 0:01:06.4]} 25.
Nhg4 {[%clk 0:01:18.9]} 25... Rd4 {[%clk 0:00:51.4]} 26. Nxf6 {[%clk 0:01:12]}
26... Nxf6 {[%clk 0:00:50.9]} 27. Nf3 {[%clk 0:01:08.3]} 27... Qd6 {[%clk
0:00:47]} 28. Nxd4 {[%clk 0:01:06.4]} 28... cxd4 {[%clk 0:00:46.7]} 29. Bd2
{[%clk 0:01:06.6]} 29... h5 {[%clk 0:00:44.4]} 30. Bf4 {[%clk 0:01:06.1]} 1-0

[Event "*** Titled Tuesday Blitz"]
[Site "Chess.com"]
[Date "2020.11.03"]
[Round "2"]
[White "ClydeHillKid"]
[Black "Angry_Twin"]
[Result "0-1"]
[WhiteElo "2350"]
[BlackElo "2856"]
[TimeControl "180+1"]
[EndTime "10:17:35 PST"]
[Termination "Angry_Twin won by checkmate"]

1. e4 {[%clk 0:03:00.9]} 1... c5 {[%clk 0:02:59.2]} 2. Nf3 {[%clk 0:02:59]} 2...
d6 {[%clk 0:02:59.5]} 3. d4 {[%clk 0:02:56.5]} 3... cxd4 {[%clk 0:03:00.4]} 4.
Nxd4 {[%clk 0:02:56.6]} 4... Nf6 {[%clk 0:03:01]} 5. Nc3 {[%clk 0:02:50.2]} 5...
a6 {[%clk 0:03:00.8]} 6. Bd3 {[%clk 0:02:48.3]} 6... e5 {[%clk 0:03:00.3]} 7.
Nde2 {[%clk 0:02:47.6]} 7... Be7 {[%clk 0:03:00.8]} 8. O-O {[%clk 0:02:47.1]}
8... O-O {[%clk 0:03:01]} 9. Ng3 {[%clk 0:02:46.9]} 9... Nc6 {[%clk 0:03:00.5]}
10. Nd5 {[%clk 0:02:39.5]} 10... Nxd5 {[%clk 0:02:54.9]} 11. exd5 {[%clk
0:02:40.4]} 11... Nb4 {[%clk 0:02:54.8]} 12. c4 {[%clk 0:02:40.2]} 12... Nxd3
{[%clk 0:02:54.5]} 13. Qxd3 {[%clk 0:02:41.1]} 13... f5 {[%clk 0:02:55.1]} 14.
f4 {[%clk 0:02:20.4]} 14... e4 {[%clk 0:02:55]} 15. Qe2 {[%clk 0:02:16.9]} 15...
Bf6 {[%clk 0:02:55.1]} 16. Be3 {[%clk 0:02:15.1]} 16... b5 {[%clk 0:02:53.7]}
17. cxb5 {[%clk 0:01:56.8]} 17... axb5 {[%clk 0:02:54.6]} 18. Qxb5 {[%clk
0:01:56.3]} 18... Ba6 {[%clk 0:02:53.7]} 19. Qc6 {[%clk 0:01:42.6]} 19... Bxf1
{[%clk 0:02:53.2]} 20. Rxf1 {[%clk 0:01:41.8]} 20... Bxb2 {[%clk 0:02:53]} 21.
Rb1 {[%clk 0:01:34.1]} 21... Rxa2 {[%clk 0:02:49.2]} 22. Qc4 {[%clk 0:01:06.1]}
22... Ra1 {[%clk 0:02:43.6]} 23. Rxa1 {[%clk 0:01:06.1]} 23... Bxa1 {[%clk
0:02:44.5]} 24. Qa6 {[%clk 0:00:58.1]} 24... Bc3 {[%clk 0:02:38.7]} 25. Qc6
{[%clk 0:00:54.2]} 25... Ba5 {[%clk 0:02:36.5]} 26. Bd4 {[%clk 0:00:47.9]} 26...
g6 {[%clk 0:02:28.5]} 27. h3 {[%clk 0:00:45.1]} 27... Rf7 {[%clk 0:02:26.8]} 28.
Qa4 {[%clk 0:00:33]} 28... Bb6 {[%clk 0:02:26.2]} 29. Bxb6 {[%clk 0:00:28.5]}
29... Qxb6+ {[%clk 0:02:27.1]} 30. Kh2 {[%clk 0:00:29.1]} 30... Qd8 {[%clk
0:02:24.2]} 31. Qc6 {[%clk 0:00:27.9]} 31... Re7 {[%clk 0:02:22.6]} 32. Qc3
{[%clk 0:00:21.4]} 32... e3 {[%clk 0:02:22.2]} 33. Ne2 {[%clk 0:00:21.6]} 33...
Qf8 {[%clk 0:02:19.8]} 34. Kg3 {[%clk 0:00:21]} 34... Qf7 {[%clk 0:02:19.3]} 35.
Qc8+ {[%clk 0:00:19.4]} 35... Kg7 {[%clk 0:02:19.1]} 36. Qc3+ {[%clk 0:00:19.3]}
36... Qf6 {[%clk 0:02:19.4]} 37. Qd3 {[%clk 0:00:17.1]} 37... h6 {[%clk
0:02:16.5]} 38. Kf3 {[%clk 0:00:17.1]} 38... g5 {[%clk 0:02:16.3]} 39. fxg5
{[%clk 0:00:15.4]} 39... hxg5 {[%clk 0:02:17.2]} 40. g3 {[%clk 0:00:14.7]} 40...
Re4 {[%clk 0:02:16.7]} 41. g4 {[%clk 0:00:11.1]} 41... Qe5 {[%clk 0:02:14]} 42.
gxf5 {[%clk 0:00:04.9]} 42... Qxf5+ {[%clk 0:02:14.9]} 43. Kg2 {[%clk
0:00:05.3]} 43... Qf2+ {[%clk 0:02:15.1]} 44. Kh1 {[%clk 0:00:05]} 44... Qf3+
{[%clk 0:02:11.5]} 45. Kh2 {[%clk 0:00:05]} 45... Rh4 {[%clk 0:02:11.5]} 46.
Qc3+ {[%clk 0:00:04.6]} 46... Qf6 {[%clk 0:02:07.8]} 47. Qc7+ {[%clk 0:00:04.5]}
47... Kh6 {[%clk 0:02:07.7]} 48. Qc3 {[%clk 0:00:03.1]} 48... Qf2+ {[%clk
0:02:06.5]} 49. Kh1 {[%clk 0:00:02.5]} 49... Rxh3# {[%clk 0:02:07.4]} 0-1

[Event "*** Titled Tuesday Blitz"]
[Site "Chess.com"]
[Date "2020.11.03"]
[Round "2"]
[White "JiiHart"]
[Black "CM_rui"]
[Result "0-1"]
[WhiteElo "2076"]
[BlackElo "2384"]
[TimeControl "180+1"]
[EndTime "10:17:35 PST"]
[Termination "CM_rui won by resignation"]

1. e4 {[%clk 0:03:00.9]} 1... e5 {[%clk 0:02:59.8]} 2. Nf3 {[%clk 0:03:00.7]}
2... Nc6 {[%clk 0:02:59.9]} 3. d4 {[%clk 0:03:01]} 3... exd4 {[%clk 0:03:00.5]}
4. Nxd4 {[%clk 0:03:01.5]} 4... Bc5 {[%clk 0:03:01]} 5. Be3 {[%clk 0:03:01]}
5... Qf6 {[%clk 0:03:01.1]} 6. c3 {[%clk 0:03:01.3]} 6... Nge7 {[%clk
0:03:00.6]} 7. g3 {[%clk 0:03:01.4]} 7... O-O {[%clk 0:02:57.3]} 8. Bg2 {[%clk
0:03:01.3]} 8... Ne5 {[%clk 0:02:48.2]} 9. O-O {[%clk 0:02:56.3]} 9... d6 {[%clk
0:02:43.3]} 10. h3 {[%clk 0:02:51]} 10... Nc4 {[%clk 0:02:28.5]} 11. Bc1 {[%clk
0:02:50.1]} 11... Nc6 {[%clk 0:02:22.6]} 12. Nxc6 {[%clk 0:02:42.7]} 12... bxc6
{[%clk 0:02:23.5]} 13. b3 {[%clk 0:02:43.1]} 13... Ne5 {[%clk 0:02:20.4]} 14.
Kh2 {[%clk 0:02:37.3]} 14... Ba6 {[%clk 0:02:10.6]} 15. f4 {[%clk 0:02:33]}
15... Ng6 {[%clk 0:01:57.7]} 16. Rf3 {[%clk 0:02:21.3]} 16... Rfe8 {[%clk
0:01:49.7]} 17. Nd2 {[%clk 0:02:05.5]} 17... Rad8 {[%clk 0:01:41.4]} 18. Bb2
{[%clk 0:01:58.7]} 18... h5 {[%clk 0:01:35]} 19. h4 {[%clk 0:01:47.3]} 19... Bc8
{[%clk 0:01:30]} 20. Bh3 {[%clk 0:01:40.7]} 20... Bg4 {[%clk 0:01:21.2]} 21.
Bxg4 {[%clk 0:01:38.8]} 21... hxg4 {[%clk 0:01:22.1]} 22. Rf1 {[%clk 0:01:38.5]}
22... Nxh4 {[%clk 0:01:20.6]} 23. e5 {[%clk 0:01:22.8]} 23... dxe5 {[%clk
0:01:17.5]} 24. Ne4 {[%clk 0:01:16.5]} 24... Nf3+ {[%clk 0:00:59.7]} 25. Kg2
{[%clk 0:01:01.4]} 25... Qh6 {[%clk 0:00:57.6]} 26. Rh1 {[%clk 0:01:01.4]} 26...
Rxd1 {[%clk 0:00:54.6]} 27. Rxh6 {[%clk 0:01:01.3]} 27... Rxa1 {[%clk
0:00:51.9]} 28. Nf6+ {[%clk 0:00:55.1]} 28... gxf6 {[%clk 0:00:47.9]} 29. Bxa1
{[%clk 0:00:53.8]} 29... Kg7 {[%clk 0:00:45.5]} 30. Rh1 {[%clk 0:00:52.1]} 30...
e4 {[%clk 0:00:38.9]} 0-1

[Event "*** Titled Tuesday Blitz"]
[Site "Chess.com"]
[Date "2020.11.03"]
[Round "2"]
[White "VladimirBugayev"]
[Black "djano"]
[Result "1-0"]
[WhiteElo "2318"]
[BlackElo "2460"]
[TimeControl "180+1"]
[EndTime "10:17:40 PST"]
[Termination "VladimirBugayev won by resignation"]

1. e4 {[%clk 0:03:00.9]} 1... c5 {[%clk 0:02:59.1]} 2. Nc3 {[%clk 0:03:00.9]}
2... a6 {[%clk 0:02:57.4]} 3. g3 {[%clk 0:02:58.5]} 3... b5 {[%clk 0:02:57.1]}
4. Bg2 {[%clk 0:02:58.7]} 4... Bb7 {[%clk 0:02:57.3]} 5. Nh3 {[%clk 0:02:58.2]}
5... g6 {[%clk 0:02:53.7]} 6. O-O {[%clk 0:02:56.8]} 6... Bg7 {[%clk 0:02:53.5]}
7. d3 {[%clk 0:02:56.3]} 7... e6 {[%clk 0:02:48]} 8. f4 {[%clk 0:02:55.6]} 8...
Ne7 {[%clk 0:02:46.4]} 9. f5 {[%clk 0:02:13]} 9... gxf5 {[%clk 0:02:44.8]} 10.
Qh5 {[%clk 0:02:12.3]} 10... Qb6 {[%clk 0:02:13.4]} 11. Ng5 {[%clk 0:01:31.4]}
11... Ng6 {[%clk 0:02:13.4]} 12. exf5 {[%clk 0:01:08.1]} 12... Bxg2 {[%clk
0:02:11.7]} 13. Kxg2 {[%clk 0:01:01.3]} 13... Qb7+ {[%clk 0:01:51]} 14. Nce4
{[%clk 0:00:54.9]} 14... exf5 {[%clk 0:01:49]} 15. Rxf5 {[%clk 0:00:54.2]} 15...
Rf8 {[%clk 0:01:32.2]} 16. Qxh7 {[%clk 0:00:31.2]} 16... Be5 {[%clk 0:01:30]}
17. Nxf7 {[%clk 0:00:21.3]} 17... Ne7 {[%clk 0:01:11.9]} 18. Rxe5 {[%clk
0:00:17.4]} 18... Rxf7 {[%clk 0:01:06.8]} 19. Qh8+ {[%clk 0:00:17.4]} 19... Rf8
{[%clk 0:01:07.2]} 20. Qh4 {[%clk 0:00:17.9]} 20... Kd8 {[%clk 0:01:07.6]} 21.
Bg5 {[%clk 0:00:17.7]} 21... Nc6 {[%clk 0:01:06.6]} 22. Bxe7+ {[%clk 0:00:15.6]}
22... Nxe7 {[%clk 0:01:07.5]} 23. Rf1 {[%clk 0:00:13.3]} 23... Kc7 {[%clk
0:01:08.4]} 24. Rxf8 {[%clk 0:00:11.5]} 24... Rxf8 {[%clk 0:01:09.3]} 25. Qxe7
{[%clk 0:00:11.5]} 25... Rd8 {[%clk 0:01:08.5]} 26. Qd6+ {[%clk 0:00:11.5]}
26... Kc8 {[%clk 0:01:07.2]} 27. Rxc5+ {[%clk 0:00:12.1]} 1-0

[Event "*** Titled Tuesday Blitz"]
[Site "Chess.com"]
[Date "2020.11.03"]
[Round "2"]
[White "Ashedu66"]
[Black "fyall777"]
[Result "0-1"]
[WhiteElo "2225"]
[BlackElo "2431"]
[TimeControl "180+1"]
[EndTime "10:17:40 PST"]
[Termination "fyall777 won on time"]

1. d4 {[%clk 0:03:00.9]} 1... d6 {[%clk 0:02:59.3]} 2. e4 {[%clk 0:02:59.9]}
2... e5 {[%clk 0:02:59.5]} 3. Nf3 {[%clk 0:02:59.1]} 3... exd4 {[%clk
0:02:58.1]} 4. Nxd4 {[%clk 0:02:56.5]} 4... Nf6 {[%clk 0:02:58]} 5. Nc3 {[%clk
0:02:56.6]} 5... Be7 {[%clk 0:02:58.1]} 6. Bf4 {[%clk 0:02:53.8]} 6... O-O
{[%clk 0:02:58.2]} 7. Qd2 {[%clk 0:02:53.8]} 7... d5 {[%clk 0:02:53.9]} 8. e5
{[%clk 0:02:39.5]} 8... Nh5 {[%clk 0:02:42.8]} 9. Bg3 {[%clk 0:02:33.1]} 9... c5
{[%clk 0:02:41.3]} 10. Nf3 {[%clk 0:02:31.8]} 10... d4 {[%clk 0:02:41.1]} 11.
Ne4 {[%clk 0:02:30.6]} 11... Bf5 {[%clk 0:02:40.3]} 12. Qe2 {[%clk 0:02:19]}
12... Qa5+ {[%clk 0:02:32.6]} 13. Nfd2 {[%clk 0:02:15.7]} 13... Nxg3 {[%clk
0:02:27.7]} 14. hxg3 {[%clk 0:02:15.2]} 14... Nc6 {[%clk 0:02:23.8]} 15. g4
{[%clk 0:02:07.8]} 15... Be6 {[%clk 0:02:04.1]} 16. f4 {[%clk 0:00:59.6]} 16...
Nb4 {[%clk 0:02:03.8]} 17. Kf2 {[%clk 0:00:49.4]} 17... Nxc2 {[%clk 0:01:53.1]}
18. Rc1 {[%clk 0:00:46.1]} 18... Ne3 {[%clk 0:01:49.8]} 19. f5 {[%clk
0:00:32.6]} 19... Qxa2 {[%clk 0:01:13.8]} 20. Kg3 {[%clk 0:00:14.4]} 20... Qxb2
{[%clk 0:01:13.4]} 21. Qd3 {[%clk 0:00:06.2]} 21... Bxf5 {[%clk 0:01:08.1]} 22.
gxf5 {[%clk 0:00:04.6]} 22... Nxf5+ {[%clk 0:01:07.1]} 23. Kh2 {[%clk
0:00:02.8]} 23... g6 {[%clk 0:01:06.1]} 0-1

[Event "*** Titled Tuesday Blitz"]
[Site "Chess.com"]
[Date "2020.11.03"]
[Round "2"]
[White "nitpicker"]
[Black "ARTHURMOTIVATOR"]
[Result "1/2-1/2"]
[WhiteElo "2133"]
[BlackElo "2389"]
[TimeControl "180+1"]
[EndTime "10:17:40 PST"]
[Termination "Game drawn by repetition"]

1. d4 {[%clk 0:03:00.9]} 1... Nf6 {[%clk 0:02:58.1]} 2. c4 {[%clk 0:03:00.8]}
2... c5 {[%clk 0:02:56.3]} 3. d5 {[%clk 0:03:00.2]} 3... g6 {[%clk 0:02:56.5]}
4. Nc3 {[%clk 0:02:59]} 4... Bg7 {[%clk 0:02:56.7]} 5. e4 {[%clk 0:02:59]} 5...
d6 {[%clk 0:02:57.3]} 6. h3 {[%clk 0:02:59]} 6... O-O {[%clk 0:02:57.6]} 7. Nf3
{[%clk 0:02:58.8]} 7... e6 {[%clk 0:02:58.1]} 8. Bd3 {[%clk 0:02:58.9]} 8... Na6
{[%clk 0:02:58.7]} 9. O-O {[%clk 0:02:57.9]} 9... e5 {[%clk 0:02:57.8]} 10. Bg5
{[%clk 0:02:41.4]} 10... h6 {[%clk 0:02:55.2]} 11. Be3 {[%clk 0:02:41.3]} 11...
Nh7 {[%clk 0:02:54.3]} 12. Ne1 {[%clk 0:02:34.9]} 12... f5 {[%clk 0:02:51.2]}
13. exf5 {[%clk 0:02:35.1]} 13... gxf5 {[%clk 0:02:49.1]} 14. f4 {[%clk
0:02:35.2]} 14... e4 {[%clk 0:02:34.9]} 15. Be2 {[%clk 0:02:32.1]} 15... Bxc3
{[%clk 0:02:03.7]} 16. bxc3 {[%clk 0:02:31.4]} 16... Qf6 {[%clk 0:02:04.6]} 17.
Qd2 {[%clk 0:02:26.3]} 17... Qg7 {[%clk 0:02:00.4]} 18. Kh2 {[%clk 0:02:19.3]}
18... Nf6 {[%clk 0:01:58.4]} 19. Nc2 {[%clk 0:02:00.6]} 19... h5 {[%clk
0:01:50.3]} 20. Bf2 {[%clk 0:01:52]} 20... Bd7 {[%clk 0:01:45]} 21. Ne3 {[%clk
0:01:50.1]} 21... Kf7 {[%clk 0:01:35.6]} 22. Bh4 {[%clk 0:01:48.8]} 22... Rh8
{[%clk 0:01:29.3]} 23. Bg5 {[%clk 0:01:18.9]} 23... h4 {[%clk 0:01:08.8]} 24.
Rab1 {[%clk 0:01:11.8]} 24... Rab8 {[%clk 0:00:56]} 25. Rb2 {[%clk 0:01:07.2]}
25... Nh7 {[%clk 0:00:48.2]} 26. Bxh4 {[%clk 0:01:03.3]} 26... Nf6 {[%clk
0:00:44.8]} 27. Bg5 {[%clk 0:00:59.2]} 27... Nh7 {[%clk 0:00:39.9]} 28. Bh4
{[%clk 0:00:50.4]} 28... Nf6 {[%clk 0:00:38.7]} 29. Bg5 {[%clk 0:00:40.9]} 29...
Nh7 {[%clk 0:00:37.7]} 30. Bh4 {[%clk 0:00:40.6]} 1/2-1/2

[Event "*** Titled Tuesday Blitz"]
[Site "Chess.com"]
[Date "2020.11.03"]
[Round "2"]
[White "chessdjw"]
[Black "Pedrada88"]
[Result "1-0"]
[WhiteElo "2685"]
[BlackElo "2384"]
[TimeControl "180+1"]
[EndTime "10:17:44 PST"]
[Termination "chessdjw won by resignation"]

1. d4 {[%clk 0:03:00.9]} 1... Nf6 {[%clk 0:02:58.9]} 2. c4 {[%clk 0:03:01.1]}
2... b6 {[%clk 0:02:59.4]} 3. Nc3 {[%clk 0:02:59.9]} 3... Bb7 {[%clk 0:02:59.9]}
4. Qc2 {[%clk 0:03:00.2]} 4... e6 {[%clk 0:02:59.6]} 5. e4 {[%clk 0:02:59.3]}
5... d6 {[%clk 0:02:58]} 6. Bd3 {[%clk 0:02:55.7]} 6... Nbd7 {[%clk 0:02:55.7]}
7. Nge2 {[%clk 0:02:48.5]} 7... g6 {[%clk 0:02:51]} 8. O-O {[%clk 0:02:46.5]}
8... Bg7 {[%clk 0:02:51.3]} 9. f3 {[%clk 0:02:43.9]} 9... O-O {[%clk 0:02:50.6]}
10. Be3 {[%clk 0:02:43.5]} 10... d5 {[%clk 0:02:48.5]} 11. cxd5 {[%clk
0:02:40.3]} 11... exd5 {[%clk 0:02:47.4]} 12. e5 {[%clk 0:02:40.8]} 12... Ne8
{[%clk 0:02:47.2]} 13. f4 {[%clk 0:02:41]} 13... c5 {[%clk 0:02:45.9]} 14. Qd2
{[%clk 0:02:27.5]} 14... Rc8 {[%clk 0:02:45.1]} 15. Rad1 {[%clk 0:02:26.6]}
15... Nc7 {[%clk 0:02:23]} 16. Bb1 {[%clk 0:02:20.4]} 16... cxd4 {[%clk
0:02:03.8]} 17. Nxd4 {[%clk 0:02:14.5]} 17... Ne6 {[%clk 0:02:03.8]} 18. Ndb5
{[%clk 0:01:57.6]} 18... Ba6 {[%clk 0:01:59.7]} 19. Rfe1 {[%clk 0:01:45.1]}
19... Bxb5 {[%clk 0:01:27.9]} 20. Nxb5 {[%clk 0:01:46]} 20... Ndc5 {[%clk
0:01:04.9]} 21. Qxd5 {[%clk 0:01:43.5]} 21... a6 {[%clk 0:00:44.5]} 22. Nd6
{[%clk 0:01:41.3]} 22... Rc7 {[%clk 0:00:42.7]} 23. f5 {[%clk 0:01:18.5]} 23...
gxf5 {[%clk 0:00:39.2]} 24. Bxf5 {[%clk 0:01:19.4]} 24... Qh4 {[%clk 0:00:35]}
25. Rf1 {[%clk 0:01:13.7]} 25... Qh5 {[%clk 0:00:28.6]} 26. Rf3 {[%clk
0:01:10.4]} 26... Rd7 {[%clk 0:00:21.2]} 27. Rdf1 {[%clk 0:01:07.8]} 27... Rc7
{[%clk 0:00:16.6]} 28. Rh3 {[%clk 0:01:06]} 28... Qe2 {[%clk 0:00:15.5]} 29.
Bxh7+ {[%clk 0:01:05]} 29... Kh8 {[%clk 0:00:15.9]} 30. Bd3+ {[%clk 0:01:04.7]}
1-0

[Event "*** Titled Tuesday Blitz"]
[Site "Chess.com"]
[Date "2020.11.03"]
[Round "2"]
[White "Atousa1"]
[Black "shaheus"]
[Result "1-0"]
[WhiteElo "2400"]
[BlackElo "2129"]
[TimeControl "180+1"]
[EndTime "10:17:44 PST"]
[Termination "Atousa1 won on time"]

1. e4 {[%clk 0:03:00.9]} 1... d5 {[%clk 0:02:57.7]} 2. exd5 {[%clk 0:03:00.3]}
2... Nf6 {[%clk 0:02:57.4]} 3. d4 {[%clk 0:02:57.3]} 3... Bg4 {[%clk 0:02:54.4]}
4. f3 {[%clk 0:02:53]} 4... Bf5 {[%clk 0:02:54.4]} 5. Bb5+ {[%clk 0:02:51.5]}
5... Nbd7 {[%clk 0:02:52.9]} 6. c4 {[%clk 0:02:44.1]} 6... a6 {[%clk 0:02:51.7]}
7. Ba4 {[%clk 0:02:44.2]} 7... b5 {[%clk 0:02:51]} 8. cxb5 {[%clk 0:02:44.5]}
8... Nxd5 {[%clk 0:02:51]} 9. bxa6 {[%clk 0:02:39.4]} 9... Rxa6 {[%clk
0:02:50.1]} 10. Ne2 {[%clk 0:02:38.8]} 10... e6 {[%clk 0:02:47.1]} 11. O-O
{[%clk 0:02:37.3]} 11... Bd6 {[%clk 0:02:46]} 12. Nbc3 {[%clk 0:02:34.5]} 12...
O-O {[%clk 0:02:43.2]} 13. Nxd5 {[%clk 0:02:26.9]} 13... exd5 {[%clk 0:02:42.8]}
14. Bf4 {[%clk 0:02:27.5]} 14... Bxf4 {[%clk 0:02:08.3]} 15. Nxf4 {[%clk
0:02:28.4]} 15... Qg5 {[%clk 0:01:58.6]} 16. g3 {[%clk 0:02:08.3]} 16... Nb6
{[%clk 0:01:42.7]} 17. Bb5 {[%clk 0:02:00.6]} 17... Raa8 {[%clk 0:01:29]} 18. a4
{[%clk 0:01:59.5]} 18... h5 {[%clk 0:01:27]} 19. a5 {[%clk 0:01:52.4]} 19... Nc4
{[%clk 0:01:26.9]} 20. Nxd5 {[%clk 0:01:39.6]} 20... Nd6 {[%clk 0:00:50.7]} 21.
f4 {[%clk 0:01:23.5]} 21... Qd8 {[%clk 0:00:46.1]} 22. Be2 {[%clk 0:01:13.2]}
22... h4 {[%clk 0:00:29.5]} 23. Bf3 {[%clk 0:01:13.3]} 23... hxg3 {[%clk
0:00:28.1]} 24. hxg3 {[%clk 0:01:14.2]} 24... Nc4 {[%clk 0:00:27.7]} 25. Qe2
{[%clk 0:01:10.7]} 25... Nxa5 {[%clk 0:00:24.9]} 26. Ne7+ {[%clk 0:01:10.9]}
26... Kh7 {[%clk 0:00:20.2]} 27. Qh2+ {[%clk 0:01:09.2]} 1-0

[Event "*** Titled Tuesday Blitz"]
[Site "Chess.com"]
[Date "2020.11.03"]
[Round "2"]
[White "Guenplen"]
[Black "gilbert_gm"]
[Result "1-0"]
[WhiteElo "2903"]
[BlackElo "2583"]
[TimeControl "180+1"]
[EndTime "10:17:46 PST"]
[Termination "Guenplen won by resignation"]

1. d4 {[%clk 0:03:00.9]} 1... Nf6 {[%clk 0:02:55.8]} 2. Bf4 {[%clk 0:03:01]}
2... d5 {[%clk 0:02:54.8]} 3. e3 {[%clk 0:03:00.9]} 3... c6 {[%clk 0:02:55]} 4.
c4 {[%clk 0:03:00.9]} 4... Bg4 {[%clk 0:02:51.3]} 5. Qb3 {[%clk 0:03:00.4]} 5...
Qb6 {[%clk 0:02:51.7]} 6. Nc3 {[%clk 0:03:00.3]} 6... e6 {[%clk 0:02:50.2]} 7.
h3 {[%clk 0:03:00.3]} 7... Bh5 {[%clk 0:02:47.8]} 8. c5 {[%clk 0:03:00.6]} 8...
Qxb3 {[%clk 0:02:39.1]} 9. axb3 {[%clk 0:03:01.5]} 9... a6 {[%clk 0:01:52.2]}
10. b4 {[%clk 0:03:01.5]} 10... Be7 {[%clk 0:01:39.8]} 11. b5 {[%clk 0:03:01.2]}
11... O-O {[%clk 0:01:38.8]} 12. Bd3 {[%clk 0:02:37.8]} 12... cxb5 {[%clk
0:01:34.6]} 13. Nxb5 {[%clk 0:02:37.6]} 13... Nc6 {[%clk 0:01:33.9]} 14. Nd6
{[%clk 0:02:37.4]} 14... b6 {[%clk 0:01:10.2]} 15. cxb6 {[%clk 0:02:27.1]} 15...
Rab8 {[%clk 0:01:10.2]} 16. b7 {[%clk 0:02:23]} 16... Rfd8 {[%clk 0:00:56.8]}
17. Nc8 {[%clk 0:02:13.4]} 17... Rxb7 {[%clk 0:00:51.7]} 18. Nxe7+ {[%clk
0:02:10.5]} 18... Nxe7 {[%clk 0:00:51.4]} 19. Nf3 {[%clk 0:02:08.6]} 19... Rxb2
{[%clk 0:00:44]} 20. O-O {[%clk 0:02:08.6]} 20... Ng6 {[%clk 0:00:36.3]} 21. Bc7
{[%clk 0:02:00.4]} 21... Rc8 {[%clk 0:00:35.1]} 22. Bg3 {[%clk 0:01:56.5]} 22...
Ne4 {[%clk 0:00:34.6]} 23. Bxe4 {[%clk 0:01:52.8]} 23... dxe4 {[%clk 0:00:35.5]}
24. Ng5 {[%clk 0:01:53]} 24... Be2 {[%clk 0:00:33.5]} 25. Rfc1 {[%clk
0:01:50.1]} 25... Re8 {[%clk 0:00:15.9]} 26. Nxe4 {[%clk 0:01:49.2]} 26... Bb5
{[%clk 0:00:15.9]} 27. Nd6 {[%clk 0:01:48.6]} 27... Rd8 {[%clk 0:00:15.6]} 28.
Rc7 {[%clk 0:01:44.1]} 28... Rf8 {[%clk 0:00:14.7]} 29. Nxb5 {[%clk 0:01:40.7]}
29... axb5 {[%clk 0:00:14.6]} 30. Raa7 {[%clk 0:01:39.8]} 30... h5 {[%clk
0:00:09.7]} 31. Bd6 {[%clk 0:01:38.6]} 31... Rd8 {[%clk 0:00:09.8]} 32. Rxf7
{[%clk 0:01:37.4]} 32... Rxd6 {[%clk 0:00:10.1]} 33. Rxg7+ {[%clk 0:01:37.1]}
33... Kf8 {[%clk 0:00:11]} 34. Rxg6 {[%clk 0:01:37.8]} 34... Rc6 {[%clk
0:00:10.9]} 35. Rf6+ {[%clk 0:01:29.4]} 35... Ke8 {[%clk 0:00:10.2]} 36. Rh6
{[%clk 0:01:27.8]} 1-0

[Event "*** Titled Tuesday Blitz"]
[Site "Chess.com"]
[Date "2020.11.03"]
[Round "2"]
[White "cstevens1"]
[Black "Keures"]
[Result "1-0"]
[WhiteElo "2667"]
[BlackElo "2316"]
[TimeControl "180+1"]
[EndTime "10:17:48 PST"]
[Termination "cstevens1 won by checkmate"]

1. e4 {[%clk 0:03:00.9]} 1... e6 {[%clk 0:03:00.1]} 2. d4 {[%clk 0:03:00.4]}
2... d5 {[%clk 0:03:00]} 3. Nd2 {[%clk 0:03:01]} 3... Nf6 {[%clk 0:02:57.7]} 4.
e5 {[%clk 0:03:01.4]} 4... Ne4 {[%clk 0:02:57.3]} 5. c3 {[%clk 0:03:02.3]} 5...
c5 {[%clk 0:02:56.5]} 6. Bd3 {[%clk 0:03:01.6]} 6... Nxd2 {[%clk 0:02:55.2]} 7.
Bxd2 {[%clk 0:03:01.6]} 7... Qb6 {[%clk 0:02:54.5]} 8. Nf3 {[%clk 0:02:58.7]}
8... Bd7 {[%clk 0:02:54.6]} 9. Qe2 {[%clk 0:02:53.8]} 9... cxd4 {[%clk
0:02:50.2]} 10. cxd4 {[%clk 0:02:53.1]} 10... Nc6 {[%clk 0:02:47.8]} 11. Bc3
{[%clk 0:02:52.9]} 11... Nb4 {[%clk 0:02:44]} 12. Bxb4 {[%clk 0:02:50.1]} 12...
Bxb4+ {[%clk 0:02:43.1]} 13. Kf1 {[%clk 0:02:50.5]} 13... O-O {[%clk 0:02:40.1]}
14. h4 {[%clk 0:02:12.4]} 14... f6 {[%clk 0:02:28.6]} 15. Rh3 {[%clk 0:01:36.4]}
15... fxe5 {[%clk 0:02:27.1]} 16. dxe5 {[%clk 0:01:37.3]} 16... Rf4 {[%clk
0:02:19]} 17. Rg3 {[%clk 0:01:29.2]} 17... Raf8 {[%clk 0:02:15]} 18. Kg1 {[%clk
0:01:22.2]} 18... Be7 {[%clk 0:02:05.8]} 19. Rf1 {[%clk 0:01:13.6]} 19... Be8
{[%clk 0:01:57.4]} 20. Qc2 {[%clk 0:01:03.9]} 20... h6 {[%clk 0:01:34.6]} 21.
Bg6 {[%clk 0:00:51.9]} 21... Bb5 {[%clk 0:01:14.3]} 22. Bh7+ {[%clk 0:00:50.6]}
22... Kh8 {[%clk 0:01:14.2]} 23. Rxg7 {[%clk 0:00:50.8]} 23... Qc6 {[%clk
0:00:31.8]} 24. Qg6 {[%clk 0:00:49.8]} 24... Qe8 {[%clk 0:00:31.4]} 25. Qxh6
{[%clk 0:00:48.2]} 25... R4f6 {[%clk 0:00:15.6]} 26. Bg6# {[%clk 0:00:47.2]} 1-0